[Event "*** Titled Tuesday Blitz"]
[Site "Chess.com"]
[Date "2020.12.01"]
[Round "8"]
[White "scarabee43"]
[Black "anon481216"]
[Result "1-0"]
[WhiteElo "2571"]
[BlackElo "2416"]
[TimeControl "180+1"]
[EndTime "11:26:46 PST"]
[Termination "scarabee43 won by resignation"]

1. Nf3 {[%clk 0:03:00.9]} 1... c5 {[%clk 0:02:59.1]} 2. c4 {[%clk 0:03:01.5]}
2... Nc6 {[%clk 0:02:59]} 3. Nc3 {[%clk 0:03:01.8]} 3... e5 {[%clk 0:02:58.3]}
4. e3 {[%clk 0:03:00.6]} 4... Nf6 {[%clk 0:02:56.7]} 5. d4 {[%clk 0:03:00.9]}
5... cxd4 {[%clk 0:02:55.4]} 6. exd4 {[%clk 0:03:01.4]} 6... e4 {[%clk
0:02:55.8]} 7. Ne5 {[%clk 0:03:01.3]} 7... Bb4 {[%clk 0:02:54.5]} 8. Be2 {[%clk
0:02:57.1]} 8... O-O {[%clk 0:02:52.9]} 9. O-O {[%clk 0:02:57.1]} 9... d6 {[%clk
0:02:51.3]} 10. Nxc6 {[%clk 0:02:55.6]} 10... bxc6 {[%clk 0:02:51.4]} 11. Bg5
{[%clk 0:02:54.2]} 11... Bxc3 {[%clk 0:02:49.4]} 12. bxc3 {[%clk 0:02:53.5]}
12... h6 {[%clk 0:02:49.8]} 13. Bh4 {[%clk 0:02:49.1]} 13... Bf5 {[%clk
0:02:44.7]} 14. Qd2 {[%clk 0:02:45.8]} 14... g5 {[%clk 0:02:29.3]} 15. Bg3
{[%clk 0:02:21.1]} 15... Bg6 {[%clk 0:02:29]} 16. h4 {[%clk 0:02:18.8]} 16...
Nh5 {[%clk 0:02:15.8]} 17. Bxh5 {[%clk 0:02:17.3]} 17... Bxh5 {[%clk 0:02:15.9]}
18. Rfe1 {[%clk 0:02:01.4]} 18... Re8 {[%clk 0:02:15.3]} 19. Qc2 {[%clk
0:01:55.3]} 19... Bg6 {[%clk 0:01:52.6]} 20. hxg5 {[%clk 0:01:53.9]} 20... hxg5
{[%clk 0:01:52]} 21. Rad1 {[%clk 0:01:48.7]} 21... e3 {[%clk 0:01:38.9]} 22. Qe2
{[%clk 0:01:42.3]} 22... exf2+ {[%clk 0:01:35.8]} 23. Qxf2 {[%clk 0:01:42.2]}
23... Qd7 {[%clk 0:01:33.8]} 24. Qf6 {[%clk 0:01:37.2]} 24... g4 {[%clk
0:00:44.6]} 25. Bxd6 {[%clk 0:01:29.9]} 25... Re6 {[%clk 0:00:44.3]} 26. Rxe6
{[%clk 0:01:27.8]} 26... Qxe6 {[%clk 0:00:44.3]} 27. Qxe6 {[%clk 0:01:16]} 27...
fxe6 {[%clk 0:00:44.2]} 28. Re1 {[%clk 0:01:16.6]} 28... Kf7 {[%clk 0:00:42.4]}
29. Rf1+ {[%clk 0:01:16.1]} 29... Bf5 {[%clk 0:00:42.1]} 30. d5 {[%clk
0:01:13.6]} 30... Rd8 {[%clk 0:00:30.2]} 31. Bc7 {[%clk 0:01:11.2]} 31... Rd7
{[%clk 0:00:20.9]} 32. d6 {[%clk 0:01:10.6]} 32... Kg6 {[%clk 0:00:20.6]} 33. c5
{[%clk 0:01:10.2]} 33... e5 {[%clk 0:00:20]} 34. Kf2 {[%clk 0:00:49.3]} 34...
Kf6 {[%clk 0:00:18.8]} 35. Ke3 {[%clk 0:00:49.4]} 35... Rh7 {[%clk 0:00:16.4]}
36. Rf2 {[%clk 0:00:35.1]} 36... Ke6 {[%clk 0:00:13.8]} 37. Re2 {[%clk
0:00:28.6]} 37... Rh1 {[%clk 0:00:11.9]} 38. Kf2 {[%clk 0:00:27.8]} 38... Rb1
{[%clk 0:00:06.1]} 39. Rxe5+ {[%clk 0:00:24.4]} 39... Kf6 {[%clk 0:00:01.7]} 40.
Rxf5+ {[%clk 0:00:23.3]} 1-0

[Event "*** Titled Tuesday Blitz"]
[Site "Chess.com"]
[Date "2020.12.01"]
[Round "8"]
[White "ecwinslow"]
[Black "GMaka"]
[Result "1/2-1/2"]
[WhiteElo "2266"]
[BlackElo "2435"]
[TimeControl "180+1"]
[EndTime "11:26:46 PST"]
[Termination "Game drawn - insufficient material"]

1. e4 {[%clk 0:03:00.9]} 1... c6 {[%clk 0:02:59.7]} 2. d4 {[%clk 0:02:59.9]}
2... d5 {[%clk 0:02:57.4]} 3. exd5 {[%clk 0:02:56.4]} 3... cxd5 {[%clk
0:02:57.3]} 4. c4 {[%clk 0:02:57.1]} 4... Nf6 {[%clk 0:02:57.8]} 5. Nc3 {[%clk
0:02:56.1]} 5... Nc6 {[%clk 0:02:56.2]} 6. Bg5 {[%clk 0:02:48.9]} 6... Be6
{[%clk 0:02:46.1]} 7. Nge2 {[%clk 0:02:32.7]} 7... dxc4 {[%clk 0:02:37.2]} 8.
Nf4 {[%clk 0:02:05.5]} 8... Qxd4 {[%clk 0:02:30.7]} 9. Nxe6 {[%clk 0:01:55.8]}
9... fxe6 {[%clk 0:02:31.6]} 10. Qxd4 {[%clk 0:01:50.9]} 10... Nxd4 {[%clk
0:02:32.5]} 11. O-O-O {[%clk 0:01:50.5]} 11... e5 {[%clk 0:02:31]} 12. Bxc4
{[%clk 0:01:49.8]} 12... Rc8 {[%clk 0:02:19.9]} 13. Bd3 {[%clk 0:01:49.5]} 13...
e6 {[%clk 0:02:14.7]} 14. Kb1 {[%clk 0:01:45]} 14... Bb4 {[%clk 0:02:09.2]} 15.
Ne4 {[%clk 0:01:39.8]} 15... O-O {[%clk 0:02:07.2]} 16. f3 {[%clk 0:01:37.3]}
16... Nd5 {[%clk 0:02:01.9]} 17. Rhe1 {[%clk 0:01:34.1]} 17... h6 {[%clk
0:02:00.1]} 18. Bd2 {[%clk 0:01:29.6]} 18... Bxd2 {[%clk 0:01:59.8]} 19. Rxd2
{[%clk 0:01:27.9]} 19... Nf4 {[%clk 0:01:52.3]} 20. Bf1 {[%clk 0:01:27.8]} 20...
Rfd8 {[%clk 0:01:42]} 21. Red1 {[%clk 0:01:26.9]} 21... Rc6 {[%clk 0:01:34.1]}
22. b3 {[%clk 0:01:25.9]} 22... Rdc8 {[%clk 0:01:34.1]} 23. g3 {[%clk
0:01:10.5]} 23... Nd5 {[%clk 0:01:32.3]} 24. f4 {[%clk 0:00:53]} 24... Ne3
{[%clk 0:01:11.6]} 25. Re1 {[%clk 0:00:53]} 25... Ndc2 {[%clk 0:01:02.6]} 26.
Ree2 {[%clk 0:00:47.5]} 26... Nxf1 {[%clk 0:01:00.2]} 27. Rxc2 {[%clk
0:00:46.9]} 27... Rxc2 {[%clk 0:00:57]} 28. Rxc2 {[%clk 0:00:46.9]} 28... Rxc2
{[%clk 0:00:57.1]} 29. Kxc2 {[%clk 0:00:47.1]} 29... exf4 {[%clk 0:00:57.6]} 30.
gxf4 {[%clk 0:00:45.9]} 30... Nxh2 {[%clk 0:00:57.8]} 31. Nc5 {[%clk 0:00:44.1]}
31... g5 {[%clk 0:00:55.5]} 32. fxg5 {[%clk 0:00:41.5]} 32... hxg5 {[%clk
0:00:56.4]} 33. Nxe6 {[%clk 0:00:41.4]} 33... g4 {[%clk 0:00:55.4]} 34. Kd3
{[%clk 0:00:39.6]} 34... Kf7 {[%clk 0:00:54]} 35. Nd8+ {[%clk 0:00:36]} 35...
Kf6 {[%clk 0:00:54.4]} 36. Nxb7 {[%clk 0:00:36]} 36... Ke5 {[%clk 0:00:54.6]}
37. Ke3 {[%clk 0:00:35]} 37... g3 {[%clk 0:00:53.4]} 38. Nc5 {[%clk 0:00:33.9]}
38... Kf5 {[%clk 0:00:49.3]} 39. Nd3 {[%clk 0:00:29.6]} 39... Kg4 {[%clk
0:00:45.7]} 40. Ne1 {[%clk 0:00:26.9]} 40... Nf1+ {[%clk 0:00:45.5]} 41. Ke2
{[%clk 0:00:26.1]} 41... Nh2 {[%clk 0:00:45.4]} 42. b4 {[%clk 0:00:24.9]} 42...
Kf4 {[%clk 0:00:45.2]} 43. a4 {[%clk 0:00:24.3]} 43... Ke4 {[%clk 0:00:40.1]}
44. b5 {[%clk 0:00:23.6]} 44... Ng4 {[%clk 0:00:38.1]} 45. a5 {[%clk 0:00:21]}
45... Ne5 {[%clk 0:00:34.3]} 46. b6 {[%clk 0:00:19.9]} 46... axb6 {[%clk
0:00:35.2]} 47. axb6 {[%clk 0:00:19.8]} 47... Nc6 {[%clk 0:00:33.9]} 48. Kf1
{[%clk 0:00:18.7]} 48... Kd4 {[%clk 0:00:24.9]} 49. Kg2 {[%clk 0:00:18]} 49...
Kc5 {[%clk 0:00:25.5]} 50. Kxg3 {[%clk 0:00:18.1]} 50... Kxb6 {[%clk 0:00:24.7]}
1/2-1/2

[Event "*** Titled Tuesday Blitz"]
[Site "Chess.com"]
[Date "2020.12.01"]
[Round "8"]
[White "Rap_woyska"]
[Black "StephenDedalus83"]
[Result "0-1"]
[WhiteElo "2491"]
[BlackElo "2713"]
[TimeControl "180+1"]
[EndTime "11:26:47 PST"]
[Termination "StephenDedalus83 won by resignation"]

1. c4 {[%clk 0:03:00.9]} 1... g6 {[%clk 0:02:59.1]} 2. Nf3 {[%clk 0:03:00.7]}
2... Bg7 {[%clk 0:02:59.5]} 3. Nc3 {[%clk 0:03:00.5]} 3... d6 {[%clk 0:02:58.9]}
4. d4 {[%clk 0:03:00.6]} 4... Bg4 {[%clk 0:02:58.5]} 5. h3 {[%clk 0:02:52.1]}
5... Bxf3 {[%clk 0:02:57.3]} 6. exf3 {[%clk 0:02:53]} 6... Nc6 {[%clk
0:02:54.3]} 7. d5 {[%clk 0:02:39]} 7... Nd4 {[%clk 0:02:53.2]} 8. Be3 {[%clk
0:02:36]} 8... c5 {[%clk 0:02:53.1]} 9. dxc6 {[%clk 0:02:32.4]} 9... Nxc6 {[%clk
0:02:54]} 10. Qd2 {[%clk 0:02:28.8]} 10... Nf6 {[%clk 0:02:53.6]} 11. Rc1 {[%clk
0:02:26.6]} 11... Qa5 {[%clk 0:02:51.2]} 12. Be2 {[%clk 0:02:20.7]} 12... O-O
{[%clk 0:02:50.8]} 13. b3 {[%clk 0:02:18.1]} 13... Rac8 {[%clk 0:02:46.2]} 14.
O-O {[%clk 0:02:16.3]} 14... Rfd8 {[%clk 0:02:44.9]} 15. f4 {[%clk 0:02:15.3]}
15... d5 {[%clk 0:02:37.3]} 16. Nxd5 {[%clk 0:02:01.4]} 16... Qxd2 {[%clk
0:02:33.7]} 17. Bxd2 {[%clk 0:02:02.3]} 17... Nxd5 {[%clk 0:02:32.1]} 18. cxd5
{[%clk 0:02:03.2]} 18... Rxd5 {[%clk 0:02:32.3]} 19. Be3 {[%clk 0:02:00.4]}
19... Rd7 {[%clk 0:02:28.2]} 20. Bf3 {[%clk 0:01:22.9]} 20... Rdc7 {[%clk
0:02:27.8]} 21. Rc4 {[%clk 0:01:17.5]} 21... b5 {[%clk 0:02:11.3]} 22. Rc5
{[%clk 0:01:01.3]} 22... Nd4 {[%clk 0:01:57.8]} 23. Bxd4 {[%clk 0:00:48.4]}
23... Rxc5 {[%clk 0:01:54.2]} 24. Bxc5 {[%clk 0:00:49.3]} 24... Rxc5 {[%clk
0:01:54.2]} 25. Rd1 {[%clk 0:00:45.4]} 25... Rc2 {[%clk 0:01:52.6]} 26. Rd8+
{[%clk 0:00:40]} 26... Bf8 {[%clk 0:01:52.3]} 27. a4 {[%clk 0:00:34]} 27... bxa4
{[%clk 0:01:49.8]} 28. bxa4 {[%clk 0:00:34.9]} 28... e6 {[%clk 0:01:48.7]} 29.
g3 {[%clk 0:00:25.7]} 29... Kg7 {[%clk 0:01:47.3]} 30. Rd1 {[%clk 0:00:10.2]}
30... Bc5 {[%clk 0:01:46.8]} 31. Rf1 {[%clk 0:00:10.2]} 31... Rc4 {[%clk
0:01:46.2]} 32. Ra1 {[%clk 0:00:07.3]} 32... Rc3 {[%clk 0:01:41.1]} 33. Kg2
{[%clk 0:00:06.5]} 33... Rc2 {[%clk 0:01:40.9]} 34. Rf1 {[%clk 0:00:06.9]} 34...
Ra2 {[%clk 0:01:40.1]} 35. Bc6 {[%clk 0:00:07.4]} 35... Kf6 {[%clk 0:01:40.1]}
36. h4 {[%clk 0:00:07.5]} 36... Ke7 {[%clk 0:01:39.1]} 37. Bb5 {[%clk
0:00:06.8]} 37... h6 {[%clk 0:01:35.1]} 38. Kf3 {[%clk 0:00:06.4]} 38... f5
{[%clk 0:01:33]} 39. Kg2 {[%clk 0:00:06.4]} 39... Kf6 {[%clk 0:01:32.9]} 40. Kf3
{[%clk 0:00:06.4]} 40... g5 {[%clk 0:01:32.4]} 41. hxg5+ {[%clk 0:00:06.4]}
41... hxg5 {[%clk 0:01:33.3]} 42. fxg5+ {[%clk 0:00:06.8]} 42... Kxg5 {[%clk
0:01:33.4]} 43. Kg2 {[%clk 0:00:07.4]} 43... e5 {[%clk 0:01:33.2]} 44. Kf3
{[%clk 0:00:07.1]} 44... e4+ {[%clk 0:01:33.2]} 45. Kg2 {[%clk 0:00:07.4]} 45...
e3 {[%clk 0:01:33.3]} 46. Kf3 {[%clk 0:00:06.4]} 46... exf2 {[%clk 0:01:33.4]}
47. Rd1 {[%clk 0:00:06.3]} 47... Rb2 {[%clk 0:01:25.5]} 48. Kg2 {[%clk
0:00:05.6]} 48... Kg4 {[%clk 0:01:22.2]} 49. Rc1 {[%clk 0:00:05.1]} 49... Be3
{[%clk 0:01:16.5]} 50. Rc4+ {[%clk 0:00:04.9]} 50... Kg5 {[%clk 0:01:13.9]} 51.
Rc3 {[%clk 0:00:03.8]} 51... Bb6 {[%clk 0:01:12.9]} 52. Rf3 {[%clk 0:00:04]}
52... Rb1 {[%clk 0:01:10.8]} 53. Bd7 {[%clk 0:00:02]} 53... Rg1+ {[%clk
0:01:10.1]} 54. Kh2 {[%clk 0:00:02]} 54... f1=Q {[%clk 0:01:09.8]} 0-1

[Event "*** Titled Tuesday Blitz"]
[Site "Chess.com"]
[Date "2020.12.01"]
[Round "8"]
[White "1977Ivan"]
[Black "Parhamov"]
[Result "0-1"]
[WhiteElo "2675"]
[BlackElo "2910"]
[TimeControl "180+1"]
[EndTime "11:26:54 PST"]
[Termination "Parhamov won by resignation"]

1. d4 {[%clk 0:03:00.9]} 1... Nf6 {[%clk 0:02:58.4]} 2. Nf3 {[%clk 0:03:01.3]}
2... g6 {[%clk 0:02:58.2]} 3. g3 {[%clk 0:03:01.1]} 3... Bg7 {[%clk 0:02:58.5]}
4. c4 {[%clk 0:03:01.1]} 4... O-O {[%clk 0:02:58.8]} 5. Bg2 {[%clk 0:03:01.6]}
5... d6 {[%clk 0:02:52.1]} 6. Nc3 {[%clk 0:03:01.2]} 6... Nc6 {[%clk 0:02:52.3]}
7. d5 {[%clk 0:03:00.9]} 7... Na5 {[%clk 0:02:51.3]} 8. b3 {[%clk 0:03:01.4]}
8... b6 {[%clk 0:02:50.7]} 9. Bd2 {[%clk 0:02:59.8]} 9... Bd7 {[%clk 0:02:44.7]}
10. O-O {[%clk 0:02:58.8]} 10... Nb7 {[%clk 0:02:45]} 11. Nd4 {[%clk 0:02:54.4]}
11... a5 {[%clk 0:02:30.5]} 12. Rc1 {[%clk 0:02:48.3]} 12... Nc5 {[%clk
0:02:29]} 13. Nc6 {[%clk 0:02:44.7]} 13... Bxc6 {[%clk 0:02:28.4]} 14. dxc6
{[%clk 0:02:44.1]} 14... e6 {[%clk 0:02:28.7]} 15. Nb5 {[%clk 0:02:36]} 15...
Qe7 {[%clk 0:02:28.9]} 16. Be3 {[%clk 0:02:34]} 16... Rfd8 {[%clk 0:02:28.5]}
17. Qc2 {[%clk 0:02:31.1]} 17... h5 {[%clk 0:02:26.8]} 18. h3 {[%clk 0:02:30]}
18... Kh7 {[%clk 0:02:20.5]} 19. Rfd1 {[%clk 0:02:29.2]} 19... Bh6 {[%clk
0:02:20.7]} 20. Bxh6 {[%clk 0:02:27.5]} 20... Kxh6 {[%clk 0:02:21.6]} 21. a3
{[%clk 0:02:07.3]} 21... a4 {[%clk 0:02:20.1]} 22. b4 {[%clk 0:02:06.6]} 22...
Nb3 {[%clk 0:02:20.4]} 23. Rb1 {[%clk 0:02:06.5]} 23... d5 {[%clk 0:02:20.3]}
24. cxd5 {[%clk 0:02:00.7]} 24... exd5 {[%clk 0:02:20.1]} 25. e3 {[%clk
0:01:58.4]} 25... h4 {[%clk 0:02:02.5]} 26. g4 {[%clk 0:01:57.8]} 26... Ne4
{[%clk 0:02:02.7]} 27. Nd4 {[%clk 0:01:53]} 27... Nxd4 {[%clk 0:01:44.2]} 28.
Rxd4 {[%clk 0:01:53.9]} 28... Ng5 {[%clk 0:01:44.6]} 29. Rbd1 {[%clk 0:01:50.8]}
29... Rd6 {[%clk 0:01:25.4]} 30. Rxd5 {[%clk 0:01:50.4]} 30... Rad8 {[%clk
0:01:23]} 31. Rxd6 {[%clk 0:01:46]} 31... Rxd6 {[%clk 0:01:23.9]} 32. Rxd6
{[%clk 0:01:45.5]} 32... Qxd6 {[%clk 0:01:24.8]} 33. f4 {[%clk 0:01:45.6]} 33...
Ne6 {[%clk 0:01:24.4]} 34. g5+ {[%clk 0:01:40.6]} 34... Kg7 {[%clk 0:01:21.1]}
35. Bf3 {[%clk 0:01:38.6]} 35... Kg8 {[%clk 0:01:11.1]} 36. Kf2 {[%clk
0:01:38.3]} 36... Ng7 {[%clk 0:01:09.9]} 37. Qc3 {[%clk 0:01:30.8]} 37... Qe6
{[%clk 0:01:07.5]} 38. Qf6 {[%clk 0:01:12.1]} 38... Qxh3 {[%clk 0:01:06.4]} 39.
Bd5 {[%clk 0:01:09.2]} 39... Qf5 {[%clk 0:00:24.1]} 40. Bxf7+ {[%clk 0:01:07.8]}
40... Kh7 {[%clk 0:00:24.4]} 41. Qxf5 {[%clk 0:01:04.4]} 41... Nxf5 {[%clk
0:00:24.5]} 42. Be6 {[%clk 0:01:02.5]} 42... Nd6 {[%clk 0:00:24.4]} 43. Kf3
{[%clk 0:00:53.9]} 43... Nb5 {[%clk 0:00:20.5]} 44. Bc4 {[%clk 0:00:52.3]} 44...
Nxa3 {[%clk 0:00:20.7]} 45. Bd3 {[%clk 0:00:52.3]} 45... b5 {[%clk 0:00:20.6]}
46. e4 {[%clk 0:00:48.4]} 46... Nc4 {[%clk 0:00:20.7]} 47. Kg4 {[%clk
0:00:46.9]} 47... a3 {[%clk 0:00:18.4]} 48. Bb1 {[%clk 0:00:46.8]} 48... Nd2
{[%clk 0:00:18.9]} 49. Ba2 {[%clk 0:00:45.7]} 49... Nxe4 {[%clk 0:00:18.8]} 50.
Kxh4 {[%clk 0:00:46.1]} 50... Nc3 {[%clk 0:00:19.3]} 51. Bb3 {[%clk 0:00:46.2]}
51... a2 {[%clk 0:00:19.9]} 52. Bxa2 {[%clk 0:00:45.8]} 52... Nxa2 {[%clk
0:00:20.8]} 53. Kg4 {[%clk 0:00:46]} 53... Nxb4 {[%clk 0:00:21.4]} 54. f5 {[%clk
0:00:46.5]} 54... Nxc6 {[%clk 0:00:22.1]} 55. f6 {[%clk 0:00:45.9]} 55... b4
{[%clk 0:00:22.6]} 56. Kf4 {[%clk 0:00:46.8]} 56... b3 {[%clk 0:00:23]} 57. Ke3
{[%clk 0:00:46.7]} 57... b2 {[%clk 0:00:23.4]} 0-1

[Event "*** Titled Tuesday Blitz"]
[Site "Chess.com"]
[Date "2020.12.01"]
[Round "8"]
[White "ambaixador"]
[Black "sara_khm"]
[Result "1-0"]
[WhiteElo "2462"]
[BlackElo "2572"]
[TimeControl "180+1"]
[EndTime "11:26:56 PST"]
[Termination "ambaixador won by resignation"]

1. Nf3 {[%clk 0:03:00.9]} 1... d5 {[%clk 0:02:56.7]} 2. c4 {[%clk 0:03:00.5]}
2... d4 {[%clk 0:02:56.2]} 3. g3 {[%clk 0:03:00.4]} 3... c5 {[%clk 0:02:55.7]}
4. Bg2 {[%clk 0:03:00.7]} 4... Nc6 {[%clk 0:02:56]} 5. O-O {[%clk 0:03:01]} 5...
g6 {[%clk 0:02:56.2]} 6. d3 {[%clk 0:03:01.4]} 6... Bg7 {[%clk 0:02:56.5]} 7.
Na3 {[%clk 0:03:01.5]} 7... Nf6 {[%clk 0:02:56.3]} 8. Nc2 {[%clk 0:03:02]} 8...
O-O {[%clk 0:02:56.4]} 9. a3 {[%clk 0:03:02.5]} 9... a5 {[%clk 0:02:56.5]} 10.
b3 {[%clk 0:03:02.5]} 10... e5 {[%clk 0:02:55]} 11. Rb1 {[%clk 0:03:02.6]} 11...
e4 {[%clk 0:02:55.1]} 12. Nfe1 {[%clk 0:02:52.6]} 12... Bf5 {[%clk 0:02:51]} 13.
b4 {[%clk 0:02:51.5]} 13... axb4 {[%clk 0:02:50.8]} 14. axb4 {[%clk 0:02:52.4]}
14... cxb4 {[%clk 0:02:43.2]} 15. Nxb4 {[%clk 0:02:53.3]} 15... Qb6 {[%clk
0:02:38.2]} 16. Bd2 {[%clk 0:02:36.1]} 16... Nxb4 {[%clk 0:02:37.8]} 17. Bxb4
{[%clk 0:02:32.8]} 17... Rfe8 {[%clk 0:02:37.9]} 18. Nc2 {[%clk 0:02:26.2]}
18... exd3 {[%clk 0:02:27.6]} 19. exd3 {[%clk 0:02:27.1]} 19... Bg4 {[%clk
0:02:12.6]} 20. Qd2 {[%clk 0:02:16.8]} 20... Re2 {[%clk 0:02:05.1]} 21. Qc1
{[%clk 0:02:12.1]} 21... Nd7 {[%clk 0:01:39.5]} 22. h3 {[%clk 0:02:03.5]} 22...
Bf5 {[%clk 0:01:36.3]} 23. Qd1 {[%clk 0:02:02.3]} 23... Ree8 {[%clk 0:01:22.7]}
24. Bd2 {[%clk 0:01:56.9]} 24... Qd8 {[%clk 0:01:18.5]} 25. Rxb7 {[%clk
0:01:55.2]} 25... Nc5 {[%clk 0:01:16.8]} 26. Rb5 {[%clk 0:01:51.2]} 26... Rc8
{[%clk 0:01:16.1]} 27. Ba5 {[%clk 0:01:34.3]} 27... Qf6 {[%clk 0:01:11.9]} 28.
Nb4 {[%clk 0:01:32.1]} 28... h5 {[%clk 0:01:07.8]} 29. Nd5 {[%clk 0:01:19.5]}
29... Qa6 {[%clk 0:00:54]} 30. Nc7 {[%clk 0:01:10.9]} 30... Rxc7 {[%clk
0:00:53.6]} 31. Bxc7 {[%clk 0:01:11.8]} 31... Nxd3 {[%clk 0:00:53.7]} 32. Rxf5
{[%clk 0:01:06.5]} 32... gxf5 {[%clk 0:00:51.7]} 33. Qxd3 {[%clk 0:01:05.5]}
33... Rc8 {[%clk 0:00:49.2]} 34. Bf4 {[%clk 0:01:00.3]} 34... Rxc4 {[%clk
0:00:46.6]} 35. Qxf5 {[%clk 0:00:52.9]} 35... Rc3 {[%clk 0:00:46.5]} 36. Re1
{[%clk 0:00:46.7]} 36... Rc8 {[%clk 0:00:40.1]} 37. Bd5 {[%clk 0:00:42.1]} 37...
Rf8 {[%clk 0:00:38.1]} 38. Be4 {[%clk 0:00:41.1]} 38... Qg6 {[%clk 0:00:35.5]}
39. Qxg6 {[%clk 0:00:38.9]} 39... fxg6 {[%clk 0:00:35.7]} 40. Bxg6 {[%clk
0:00:39.5]} 40... h4 {[%clk 0:00:36.2]} 41. Kg2 {[%clk 0:00:36.6]} 41... hxg3
{[%clk 0:00:36.2]} 42. fxg3 {[%clk 0:00:37.5]} 42... Bf6 {[%clk 0:00:35.2]} 43.
Be5 {[%clk 0:00:34.9]} 43... Bxe5 {[%clk 0:00:30]} 44. Rxe5 {[%clk 0:00:35.8]}
44... Kg7 {[%clk 0:00:30.6]} 45. Bd3 {[%clk 0:00:35.5]} 45... Rd8 {[%clk
0:00:30.2]} 46. Kf3 {[%clk 0:00:35]} 46... Rf8+ {[%clk 0:00:29.1]} 47. Rf5
{[%clk 0:00:34.8]} 47... Re8 {[%clk 0:00:28.6]} 48. Kg4 {[%clk 0:00:33.8]} 48...
Re3 {[%clk 0:00:28.4]} 49. Rf3 {[%clk 0:00:34.2]} 49... Re1 {[%clk 0:00:27.5]}
50. Rf4 {[%clk 0:00:34.4]} 50... Re3 {[%clk 0:00:25.1]} 51. Rxd4 {[%clk
0:00:34.5]} 51... Kf6 {[%clk 0:00:25.7]} 52. h4 {[%clk 0:00:33.4]} 52... Ke5
{[%clk 0:00:25.9]} 53. Re4+ {[%clk 0:00:33.2]} 53... Rxe4+ {[%clk 0:00:25.8]}
54. Bxe4 {[%clk 0:00:34.1]} 1-0

[Event "*** Titled Tuesday Blitz"]
[Site "Chess.com"]
[Date "2020.12.01"]
[Round "8"]
[White "SanchezKelvin"]
[Black "Sergienko_Sergey"]
[Result "0-1"]
[WhiteElo "2462"]
[BlackElo "2368"]
[TimeControl "180+1"]
[EndTime "11:26:56 PST"]
[Termination "Sergienko_Sergey won on time"]

1. e4 {[%clk 0:02:12.4]} 1... c5 {[%clk 0:02:57.8]} 2. Nf3 {[%clk 0:02:11.9]}
2... a6 {[%clk 0:02:56.6]} 3. c4 {[%clk 0:02:10.5]} 3... e6 {[%clk 0:02:55.8]}
4. d4 {[%clk 0:02:09.7]} 4... cxd4 {[%clk 0:02:55.2]} 5. Nxd4 {[%clk 0:02:10.6]}
5... Nf6 {[%clk 0:02:54.2]} 6. Nc3 {[%clk 0:02:09.9]} 6... d6 {[%clk 0:02:54.2]}
7. f3 {[%clk 0:02:09.7]} 7... Be7 {[%clk 0:02:53.8]} 8. Be3 {[%clk 0:02:09.7]}
8... b6 {[%clk 0:02:53.1]} 9. Be2 {[%clk 0:02:09.9]} 9... Bb7 {[%clk 0:02:52.9]}
10. Qd2 {[%clk 0:02:10.8]} 10... Nbd7 {[%clk 0:02:50.8]} 11. O-O {[%clk
0:01:22.5]} 11... O-O {[%clk 0:02:48.8]} 12. a4 {[%clk 0:01:22]} 12... Rc8
{[%clk 0:02:40.5]} 13. a5 {[%clk 0:01:21.7]} 13... bxa5 {[%clk 0:02:28.9]} 14.
Nb3 {[%clk 0:01:20.7]} 14... Ne5 {[%clk 0:02:17.7]} 15. Nxa5 {[%clk 0:01:19.7]}
15... Ba8 {[%clk 0:02:17.4]} 16. Na4 {[%clk 0:01:18.8]} 16... Rb8 {[%clk
0:02:08.5]} 17. Ba7 {[%clk 0:00:33.1]} 17... Qc7 {[%clk 0:02:03.4]} 18. Bxb8
{[%clk 0:00:32.4]} 18... Rxb8 {[%clk 0:02:02.5]} 19. Nc3 {[%clk 0:00:29.8]}
19... h6 {[%clk 0:01:50.3]} 20. Kh1 {[%clk 0:00:29.7]} 20... Ng6 {[%clk
0:01:39.2]} 21. Rfc1 {[%clk 0:00:28.5]} 21... Qc5 {[%clk 0:01:34.8]} 22. Na4
{[%clk 0:00:24.6]} 22... Qf2 {[%clk 0:01:29]} 23. Qe1 {[%clk 0:00:23.9]} 23...
Qe3 {[%clk 0:01:24.5]} 24. Bf1 {[%clk 0:00:21.3]} 24... Qg5 {[%clk 0:01:23.8]}
25. Rd1 {[%clk 0:00:11.8]} 25... d5 {[%clk 0:01:18.1]} 26. cxd5 {[%clk
0:00:11.7]} 26... Bb4 {[%clk 0:01:16.9]} 27. Nc3 {[%clk 0:00:11.9]} 27... exd5
{[%clk 0:01:12.6]} 28. e5 {[%clk 0:00:12.1]} 28... Nh5 {[%clk 0:01:10.1]} 29.
Qd2 {[%clk 0:00:11.1]} 29... Ngf4 {[%clk 0:01:07.6]} 30. g3 {[%clk 0:00:10.5]}
30... d4 {[%clk 0:01:05.7]} 31. gxf4 {[%clk 0:00:06]} 31... Nxf4 {[%clk
0:01:02.7]} 32. Qf2 {[%clk 0:00:03.5]} 32... dxc3 {[%clk 0:00:59.9]} 33. bxc3
{[%clk 0:00:03.8]} 33... Bxc3 {[%clk 0:00:57.1]} 34. Ra3 {[%clk 0:00:03.8]}
34... Bxe5 {[%clk 0:00:53.9]} 35. Nc4 {[%clk 0:00:02.9]} 35... Bf6 {[%clk
0:00:48.9]} 36. Nd2 {[%clk 0:00:03]} 36... Rb2 {[%clk 0:00:45.9]} 37. Rb3 {[%clk
0:00:02.3]} 37... Rxb3 {[%clk 0:00:43.5]} 38. Nxb3 {[%clk 0:00:03.2]} 38... Qh5
{[%clk 0:00:42.6]} 39. Bg2 {[%clk 0:00:02.1]} 39... Nxg2 {[%clk 0:00:42.2]} 40.
Kxg2 {[%clk 0:00:03]} 40... Qg4+ {[%clk 0:00:42.1]} 41. Kf1 {[%clk 0:00:03.2]}
41... Bxf3 {[%clk 0:00:40.8]} 42. Rd3 {[%clk 0:00:03.2]} 42... Be4 {[%clk
0:00:37.7]} 43. Re3 {[%clk 0:00:02.3]} 43... Qd1+ {[%clk 0:00:37.4]} 44. Qe1
{[%clk 0:00:02.5]} 44... Bd3+ {[%clk 0:00:34.2]} 45. Kf2 {[%clk 0:00:02.4]}
45... Qxb3 {[%clk 0:00:34.1]} 46. Qd2 {[%clk 0:00:01.7]} 46... Bd4 {[%clk
0:00:32.5]} 0-1